bitfinex/quotes_ETHUSD_20241022
["timestamp","ask_amount","ask_price","bid_price","bid_amount"]
[1729605552142,7.63282,2620.3,2619.8,0.8118]
[1729605552704,3.81693,2619.9,2619.8,0.8118]
[1729605552945,4.36463219,2620.0,2619.5,0.8118]
[1729605553118,3.81737,2619.6,2619.5,0.8118]
[1729605553313,4.36463219,2620.0,2619.5,0.8118]
[1729605553627,3.81718,2619.8,2619.5,0.8118]
[1729605553819,0.755,2620.1,2619.5,0.8118]
[1729605553820,3.81737,2619.6,2619.5,0.8118]
[1729605554142,3.81723,2619.7,2618.8,3.81842]
[1729605554346,3.81693,2619.9,2619.2,0.8224]
[1729605554511,3.81752,2619.5,2619.2,0.8224]
[1729605555034,3.81739,2619.6,2619.2,0.8224]
[1729605555233,3.81701,2619.9,2619.5,0.8115]
[1729605555743,3.81675,2620.1,2619.5,1.14683389]
[1729605555910,3.81675,2620.1,2619.5,1.07048615]
[1729605556109,3.81665,2620.1,2619.5,1.07048615]
[1729605556546,3.8168,2620.0,2619.5,1.07048615]
[1729605556718,3.81701,2619.9,2619.5,1.07048615]
[1729605557250,3.81701,2619.9,2619.5,0.8115]
[1729605557747,3.8167,2620.1,2619.5,0.8115]
[1729605557950,3.81683,2620.0,2619.5,0.8115]
[1729605558107,3.81636,2620.3,2619.5,0.8115]
[1729605558316,3.81672,2620.1,2619.5,0.8115]
[1729605558509,3.81672,2620.1,2619.6,0.64075215]
[1729605558742,3.81651,2620.2,2619.6,0.64075215]
[1729605558943,3.81672,2620.1,2619.6,0.64075215]
[1729605559259,7.63346,2620.1,2619.5,0.8115]
[1729605559571,3.81658,2620.2,2619.6,0.07634172]
[1729605559756,3.81658,2620.2,2619.6,0.83443945]
[1729605559969,3.8164,2620.3,2619.6,0.7581]
[1729605560157,3.81652,2620.2,2619.6,1.08808566]
[1729605560353,3.81665,2620.1,2619.6,1.08808566]
[1729605560552,3.81651,2620.2,2619.6,1.01174615]
[1729605561481,3.81651,2620.2,2619.6,1.08808568]
[1729605562245,3.81618,2620.5,2619.7,4.64092]
[1729605562443,3.81618,2620.5,2619.9,4.64062]
[1729605562879,3.81618,2620.5,2619.9,4.71695081]
[1729605563250,3.81616,2620.5,2619.9,0.8237]
[1729605563588,3.81616,2620.5,2619.9,0.90003082]
[1729605563589,7.63236,2620.5,2619.9,0.90003082]
[1729605563758,3.81616,2620.5,2619.9,5.62001096]
[1729605564094,4.36463219,2620.9,2619.9,5.62001096]
[1729605564095,3.81552,2620.9,2620.1,4.63032]
[1729605564303,7.63108,2620.9,2620.3,0.8137]
[1729605564649,3.8157,2620.8,2620.3,0.8137]
[1729605565291,3.8159,2620.7,2620.3,0.8137]
[1729605565470,3.81599,2620.6,2620.3,0.8137]
[1729605565671,3.8159,2620.7,2620.3,0.8137]
[1729605567216,3.8159,2620.7,2620.3,1.276733]
[1729605567383,7.63118,2620.9,2620.3,1.276733]
[1729605567586,3.81564,2620.8,2620.3,1.276733]
[1729605567784,3.81577,2620.7,2620.3,1.276733]
[1729605568305,3.81563,2620.8,2620.3,1.276733]
[1729605568613,3.81592,2620.6,2620.3,1.276733]
[1729605568801,3.81592,2620.6,2620.3,0.8137]
[1729605569000,7.63138,2620.8,2620.3,0.8137]
[1729605569184,3.81579,2620.7,2620.3,0.8137]
[1729605569510,4.36463219,2620.9,2620.3,0.8137]
[1729605569715,3.81614,2620.5,2620.3,0.8137]
[1729605570788,3.81523,2621.1,2620.3,0.8137]
[1729605571008,3.81577,2620.7,2620.3,0.8137]
[1729605571717,3.81592,2620.6,2620.3,0.8137]
[1729605571919,3.81577,2620.7,2620.3,0.8137]
[1729605572321,3.81631,2620.4,2619.8,1.30129057]
[1729605572524,3.81631,2620.4,2619.9,0.51185006]
[1729605572819,3.81631,2620.4,2619.9,0.07633037]
[1729605573018,3.81613,2620.5,2619.8,1.30129057]
[1729605573193,3.81587,2620.7,2620.1,0.8042]
[1729605573404,3.81587,2620.7,2620.1,0.88053031]
[1729605573604,3.81587,2620.7,2620.1,0.8042]
[1729605573787,3.81581,2620.7,2620.1,1.647974]
[1729605573984,3.41009658,2621.1,2620.1,1.647974]
[1729605574287,4.64705,2621.2,2620.1,0.8042]
[1729605574288,3.41009658,2620.9,2620.1,0.8042]
[1729605574627,7.63231,2620.5,2620.1,0.8042]
[1729605574784,3.81622,2620.4,2620.1,0.8042]
[1729605574985,3.81615,2620.5,2620.1,0.8042]
[1729605576130,3.81592,2620.6,2620.1,0.8042]
[1729605576305,3.81577,2620.7,2620.2,0.462092]
[1729605577322,3.81577,2620.7,2620.2,2.24045349]
[1729605577541,7.63118,2620.9,2620.2,6.05686349]
[1729605577826,3.81557,2620.9,2620.4,0.8201]
[1729605577988,3.81557,2620.9,2620.4,1.51542454]
[1729605578626,3.81564,2620.8,2620.4,1.51542454]
[1729605578832,3.81557,2620.9,2620.4,1.51542454]
[1729605579696,3.81556,2620.9,2620.4,1.51542454]
[1729605579897,3.81533,2621.0,2620.4,0.8201]
[1729605580099,3.81569,2620.8,2620.4,0.8201]
[1729605580332,3.8155,2620.9,2620.4,0.8201]
[1729605581320,3.81533,2621.0,2620.4,0.8201]
[1729605581501,3.81554,2620.9,2620.4,0.8201]
[1729605581725,3.81533,2621.0,2620.5,0.463645]
[1729605581924,3.7585,2621.5,2620.4,0.8201]
[1729605581925,3.81554,2620.9,2620.4,0.8201]
[1729605582131,3.41009658,2620.7,2620.2,2.56136149]
[1729605582430,3.81627,2620.4,2620.2,2.56136149]
[1729605582636,3.81635,2620.3,2620.2,2.56136149]
[1729605582833,3.81635,2620.3,2620.2,1.77836149]
[1729605583008,7.22644658,2620.3,2620.2,1.77836149]
[1729605583599,3.81635,2620.3,2620.2,1.77836149]
[1729605585995,3.81651,2620.2,2619.6,0.7516]
[1729605586259,3.8167,2620.1,2619.6,1.208524]
[1729605586541,3.81651,2620.2,2619.6,1.208524]
[1729605586715,3.81651,2620.2,2619.6,1.28486299]
[1729605587044,3.81651,2620.2,2619.6,1.208524]
[1729605587545,3.8168,2620.0,2619.6,1.208524]
[1729605588427,4.59563,2620.4,2619.6,0.7516]
[1729605588428,3.8165,2620.2,2619.6,0.7516]
[1729605588599,0.7794,2620.4,2619.6,0.7516]
[1729605588600,3.81692,2620.0,2619.6,0.7516]
[1729605590743,3.81672,2620.1,2619.6,0.7516]
[1729605590941,3.8168,2620.0,2619.6,0.7516]
[1729605591134,3.81702,2619.9,2619.6,0.7516]
[1729605591350,3.81681,2620.0,2619.6,0.7516]
[1729605592679,0.7838,2620.7,2619.7,0.8001]
[1729605592858,3.0,2621.0,2619.7,0.8001]
[1729605592859,4.74020628,2620.6,2619.9,4.61696]
[1729605593182,3.8158,2620.7,2620.1,0.8001]
[1729605593388,3.8158,2620.7,2620.2,0.46932065]
[1729605593748,3.81593,2620.6,2620.1,0.8001]
[1729605594790,4.59916,2621.0,2620.3,4.59885]
[1729605594791,3.81543,2621.0,2620.3,4.59885]
[1729605594976,7.63088,2621.0,2620.3,4.59885]
[1729605595472,3.81512,2621.2,2620.6,3.81585]
[1729605595672,3.81496,2621.3,2620.7,4.657187]
[1729605595994,3.81496,2621.3,2620.8,0.8075]
[1729605596285,7.62959,2621.4,2620.8,0.8075]
[1729605596513,3.81475,2621.4,2620.8,0.8075]
[1729605596665,3.81501,2621.3,2620.8,0.8075]
[1729605596870,3.81501,2621.3,2620.8,1.7355557]
[1729605597408,3.81475,2621.4,2620.8,1.7355557]
[1729605597766,3.81499,2621.3,2620.8,0.8075]
[1729605598311,3.81504,2621.2,2620.8,0.8075]
[1729605599291,3.81499,2621.3,2620.8,0.8075]
[1729605599495,7.62997,2621.3,2620.8,0.8075]
[1729605599699,3.81516,2621.2,2620.8,0.8075]
[1729605600511,3.81519,2621.1,2620.8,0.8075]
[1729605600886,3.81498,2621.3,2620.8,0.8075]
[1729605601086,3.81528,2621.1,2620.8,1.269834]
[1729605601282,3.81528,2621.1,2620.8,0.8075]
[1729605601469,3.8157,2620.8,2620.5,0.786]
[1729605601669,3.81544,2621.0,2620.5,0.786]
[1729605601873,3.81511,2621.2,2620.6,0.0763163]
[1729605602110,3.81516,2621.2,2620.6,0.7905]
[1729605602313,3.81516,2621.2,2620.6,4.60641]
[1729605603069,3.81513,2621.2,2620.6,4.60641]
[1729605603282,3.81513,2621.2,2620.7,0.07630737]
[1729605603611,3.81513,2621.2,2620.7,0.46826274]
[1729605603821,3.81513,2621.2,2620.7,0.54457011]
[1729605604044,3.81513,2621.2,2620.7,0.46826274]
[1729605604354,3.81528,2621.1,2620.7,0.46826274]
[1729605604525,3.8154,2621.0,2620.6,0.7905]
[1729605605047,3.81515,2621.2,2620.6,0.7905]
[1729605605245,3.41009658,2621.5,2620.6,0.7905]
[1729605605558,3.41009658,2621.3,2620.6,0.7905]
[1729605605765,3.41009658,2620.7,2620.3,0.7814]
[1729605605950,3.81574,2620.8,2620.3,0.7814]
[1729605606126,3.81601,2620.6,2620.3,0.7814]
[1729605606327,3.81621,2620.4,2620.3,0.7814]
[1729605606514,4.62545,2620.3,2620.2,1.77836149]
[1729605606713,8.03554658,2620.3,2620.2,1.13146165]
[1729605606909,3.81706,2619.9,2619.5,0.82834021]
[1729605607230,3.81693,2619.9,2619.5,0.752]
[1729605607539,3.81681,2620.0,2619.5,0.752]
[1729605608125,3.81697,2619.9,2619.5,0.752]
[1729605608431,3.81725,2619.7,2619.5,0.752]
[1729605608767,3.81752,2619.5,2619.4,1.13146165]
[1729605608927,7.22761658,2619.5,2619.4,1.13146165]
[1729605609128,7.22761658,2619.5,2619.4,0.36446165]
[1729605609328,7.58037,2620.4,2619.4,1.19466165]
[1729605609675,7.58037,2620.4,2618.8,3.81851]
[1729605609676,3.81832,2619.0,2618.5,0.8302]
[1729605609972,3.0,2619.8,2618.6,0.8302]
[1729605610128,0.7741,2620.1,2618.7,3.8186]
[1729605610129,3.81767,2619.4,2618.7,3.8186]
[1729605610326,3.81767,2619.4,2618.8,3.81844]
[1729605610637,3.81781,2619.3,2618.9,0.8302]
[1729605610857,3.81818,2619.1,2618.9,0.8302]
[1729605611030,3.81836,2619.0,2618.6,0.8302]
[1729605611422,3.81836,2619.0,2618.5,0.36446165]
[1729605611423,3.81846,2618.9,2618.5,0.36446165]
[1729605611575,3.81846,2618.9,2618.1,7.612]
[1729605611576,3.81883,2618.6,2618.1,7.612]
[1729605611727,3.81883,2618.6,2617.7,3.82001]
[1729605611728,4.61466,2618.4,2617.7,3.82001]
[1729605612073,4.61466,2618.4,2617.6,0.36446165]
[1729605612074,3.81956,2618.1,2617.6,0.36446165]
[1729605612373,3.41009658,2618.1,2617.6,0.36446165]
[1729605612581,3.81871,2618.7,2617.6,0.36446165]
[1729605612582,4.61564,2617.7,2617.6,0.36446165]
[1729605612745,3.0,2617.4,2616.4,4.60343]
[1729605612946,3.82066,2617.4,2616.7,3.82158]
[1729605613130,0.7955,2617.7,2616.9,3.82122]
[1729605613354,0.7955,2617.7,2616.6,3.41009658]
[1729605613355,0.7955,2618.1,2617.3,3.8206]
[1729605613554,0.7955,2618.1,2617.2,1.14586165]
[1729605613555,3.82008,2617.8,2617.2,1.14586165]
[1729605613845,3.41009658,2617.3,2617.2,0.36446165]
[1729605614056,7.23082658,2617.3,2617.2,0.36446165]
[1729605614231,3.82112,2617.1,2616.5,3.82178]
[1729605614429,3.0,2617.7,2615.9,8.57761283]
[1729605614430,4.37765316,2617.0,2616.4,0.36446165]
[1729605614637,4.61036,2616.6,2616.4,0.36446165]
[1729605614933,3.82189,2616.5,2616.0,1.24]
[1729605615181,3.82189,2616.5,2615.7,3.82296]
[1729605615182,3.82214,2616.4,2615.7,3.82296]
[1729605615486,3.82171,2616.7,2616.1,3.82247]
[1729605615689,3.82114,2617.1,2616.5,4.61481]
[1729605615846,0.7911,2617.5,2616.5,0.793]
[1729605616047,3.82054,2617.5,2616.9,3.82122]
[1729605616285,3.82054,2617.5,2617.0,0.382122]
[1729605616485,3.82054,2617.5,2616.9,3.82122]
[1729605616486,3.82067,2617.4,2616.9,0.07641645]
[1729605616686,3.82056,2617.5,2616.5,12.22681]
[1729605616991,3.82074,2617.3,2616.7,3.8216]
[1729605617697,3.82018,2617.7,2617.0,0.7553]
[1729605617858,3.82029,2617.6,2617.0,0.7553]
[1729605618347,3.82031,2617.6,2617.1,0.45765]
[1729605618545,3.82043,2617.5,2617.0,0.7553]
[1729605618746,3.8198,2618.0,2617.0,0.7553]
[1729605618948,3.82036,2617.6,2616.8,3.82139]
[1729605619189,3.82071,2617.4,2616.6,3.82165]
[1729605619359,3.82092,2617.2,2616.6,3.82165]
[1729605619559,3.82071,2617.4,2616.6,3.82165]
[1729605619560,3.82071,2617.4,2616.8,3.82145]
[1729605620184,3.8207,2617.4,2616.7,0.07642283]
[1729605620348,3.82073,2617.3,2616.7,3.89799283]
[1729605620548,3.8207,2617.4,2616.8,3.82142]
[1729605620986,3.8207,2617.4,2616.8,7.64278]
[1729605621159,3.8207,2617.4,2616.8,3.82136]
[1729605621563,3.8207,2617.4,2616.8,7.64272]
[1729605621985,3.8207,2617.4,2616.8,3.82136]
[1729605622364,3.82031,2617.6,2616.9,0.07642239]
[1729605622564,3.82031,2617.6,2617.0,3.82107]
[1729605623307,3.82031,2617.6,2617.1,0.8271]
[1729605624023,3.82045,2617.5,2617.1,0.8271]
[1729605624327,3.82031,2617.6,2617.1,0.8271]
[1729605624483,7.64073,2617.6,2617.1,0.8271]
[1729605624681,4.37765316,2617.9,2616.7,0.7979]
[1729605624883,3.82119,2617.0,2616.7,0.7979]
[1729605625733,3.82095,2617.2,2616.7,0.7979]
[1729605625885,3.82105,2617.1,2616.7,0.7979]
[1729605626385,3.82029,2617.6,2617.0,3.82106]
[1729605626590,0.7888,2617.7,2616.8,3.82133]
[1729605626591,3.82058,2617.5,2616.8,3.82133]
[1729605626922,3.82067,2617.4,2616.8,7.64269]
[1729605627130,3.82088,2617.2,2616.7,4.6195]
[1729605627326,3.82088,2617.2,2616.7,0.7979]
[1729605627921,3.82088,2617.2,2616.7,4.61944]
[1729605628093,3.82088,2617.2,2616.7,5.463549]
[1729605628429,3.0,2618.0,2616.9,4.5832]
[1729605628587,3.81994,2617.9,2617.3,3.82064]
[1729605628786,3.81957,2618.1,2617.6,3.82027]
[1729605628986,3.81957,2618.1,2617.6,4.5821]
[1729605629186,3.81994,2617.9,2617.3,1.12636165]
[1729605629424,3.82008,2617.8,2617.3,5.44172782]
[1729605629627,3.81969,2618.1,2617.5,3.82043]
[1729605629830,3.81969,2618.1,2617.6,3.82029]
[1729605630213,0.7957,2618.6,2617.5,0.07640074]
[1729605630415,3.81877,2618.7,2617.9,0.7619]
[1729605630748,3.81847,2618.9,2618.2,3.81933]
[1729605630908,3.81825,2619.0,2618.5,3.81896]
[1729605631113,3.81825,2619.0,2618.3,3.81927]
[1729605631311,3.81791,2619.3,2618.6,3.81875]
[1729605631647,3.81731,2619.7,2619.1,3.818]
[1729605631949,3.8165,2620.2,2619.3,3.81781]
[1729605632111,3.8172,2619.8,2619.3,3.81781]
[1729605632458,3.8172,2619.8,2619.1,3.818]
[1729605632625,3.81679,2620.0,2619.0,0.36446165]
[1729605632953,3.81789,2619.3,2619.0,0.36446165]
[1729605633244,3.81804,2619.2,2619.0,0.36446165]
[1729605633606,3.8181,2619.1,2619.0,0.36446165]
[1729605634152,3.81908,2618.5,2618.2,0.807]
[1729605634324,3.81908,2618.5,2617.8,1.17146165]
[1729605634522,3.81927,2618.3,2617.8,4.99142165]
[1729605634725,3.81908,2618.5,2617.9,3.81977]
[1729605634911,3.81879,2618.7,2617.9,0.07638841]
[1729605635251,0.7643,2618.8,2618.2,3.81934]
[1729605635252,3.81855,2618.8,2618.2,3.81934]
[1729605635624,7.63698,2618.9,2618.2,7.63862]
[1729605635948,7.63698,2618.9,2618.0,0.07638345]
[1729605635949,7.63745,2618.7,2618.0,7.6392]
[1729605636129,3.81869,2618.7,2618.0,7.6392]
[1729605636565,3.81894,2618.6,2617.9,3.81983]
[1729605636770,3.81901,2618.5,2617.9,3.81983]
[1729605637143,3.81894,2618.6,2618.0,3.81968]
[1729605637468,3.8311,2619.1,2618.0,3.81968]
[1729605637469,3.81873,2618.7,2618.0,3.81968]
[1729605637640,3.81891,2618.6,2618.0,3.81968]
[1729605637842,3.819,2618.5,2617.9,0.96923608]
[1729605638373,3.81894,2618.6,2617.9,4.78896608]
[1729605638529,3.81921,2618.4,2617.8,1.17146165]
[1729605638731,3.8187,2618.7,2617.8,1.17146165]
[1729605638967,3.81985,2617.9,2617.8,0.36446165]
[1729605640072,3.82038,2617.6,2617.0,0.8315]
[1729605640264,4.37765316,2618.1,2617.1,3.82095]
[1729605640265,3.82024,2617.7,2617.1,3.82095]
[1729605640430,3.81996,2617.9,2617.1,3.82093]
[1729605640630,3.81993,2617.9,2617.1,4.8003541]
[1729605641030,3.82,2617.8,2617.2,3.82075]
[1729605641230,3.82025,2617.7,2617.1,4.72393832]
[1729605641523,3.8199,2617.9,2617.2,3.89726993]
[1729605641631,3.8199,2617.9,2617.3,3.82073]
[1729605641829,3.8111,2618.4,2617.3,3.82073]
[1729605641830,3.81935,2618.3,2617.4,3.89687985]
[1729605642071,3.81946,2618.2,2617.6,3.82026]
[1729605642270,3.81941,2618.2,2617.6,4.18472165]
[1729605642577,3.81989,2617.9,2617.6,0.36446165]
[1729605642879,3.82007,2617.8,2617.6,0.36446165]
[1729605643041,3.81973,2618.0,2617.6,0.36446165]
[1729605643444,3.81957,2618.1,2617.6,0.36446165]
[1729605644159,3.81941,2618.2,2617.6,0.36446165]
[1729605644464,3.8111,2618.4,2617.7,3.82004]
[1729605644465,3.81927,2618.3,2617.7,3.82004]
[1729605644676,3.81942,2618.2,2617.6,0.93511868]
[1729605644879,3.81966,2618.1,2617.6,0.36446165]
[1729605645089,3.81942,2618.2,2617.6,4.26112929]
[1729605645287,7.63848,2618.4,2617.7,3.82014]
[1729605645451,3.81922,2618.4,2617.6,0.36446165]
[1729605645650,3.81892,2618.6,2617.8,3.81991]
[1729605645961,3.81887,2618.6,2618.1,0.8012]
[1729605646551,3.81921,2618.4,2618.1,0.8012]
[1729605646792,3.81929,2618.3,2618.1,0.8012]
[1729605647085,7.63841,2618.4,2618.1,0.8012]
[1729605647286,3.8192,2618.4,2618.1,0.8012]
[1729605647589,3.81928,2618.3,2618.1,0.8012]
[1729605647793,3.81928,2618.3,2617.7,4.62131]
[1729605647950,3.81913,2618.4,2617.8,3.89635377]
[1729605648150,3.81887,2618.6,2617.7,5.85948048]
[1729605648389,3.81899,2618.5,2617.7,5.85948048]
[1729605649091,3.81912,2618.4,2617.8,3.82]
[1729605649465,4.37765316,2619.0,2617.7,2.03942048]
[1729605649773,3.81941,2618.3,2617.7,4.62132]
[1729605649960,3.81941,2618.3,2617.7,0.8012]
[1729605650165,3.81958,2618.1,2617.7,0.8012]
[1729605651153,3.81942,2618.2,2617.7,0.8012]
[1729605651791,3.81917,2618.4,2617.8,3.81987]
[1729605652110,3.81917,2618.4,2617.7,2.00982365]
[1729605652305,3.81935,2618.3,2617.7,9.64994365]
[1729605652587,3.8189,2618.6,2618.0,3.81963]
[1729605652900,3.8189,2618.6,2617.9,3.81984]
[1729605653102,3.81931,2618.3,2617.7,4.98571165]
[1729605653256,7.63866,2618.3,2617.7,4.98571165]
[1729605653595,3.81957,2618.1,2617.7,1.16566165]
[1729605655300,3.81943,2618.2,2617.7,1.16566165]
[1729605655855,3.81959,2618.1,2617.7,1.16566165]
[1729605656894,3.81943,2618.2,2617.7,1.16566165]
[1729605657262,7.63899,2618.2,2617.7,1.16566165]
[1729605657769,3.81958,2618.1,2617.7,1.16566165]
[1729605660386,3.81953,2618.2,2617.7,1.16566165]
[1729605660612,3.81908,2618.5,2617.8,3.81996]
[1729605660883,0.802,2618.9,2617.9,0.7546]
[1729605660884,3.8184,2618.9,2617.9,0.7546]
[1729605661087,3.81818,2619.1,2618.1,5.13225316]
[1729605661313,3.81781,2619.3,2618.6,3.81883]
[1729605661579,0.8328,2619.5,2618.7,0.7546]
[1729605661580,3.81818,2619.1,2618.7,0.7546]
[1729605662022,3.81805,2619.2,2618.7,0.7546]
[1729605662335,3.81826,2619.0,2618.7,0.7546]
[1729605662614,3.81861,2618.8,2618.5,0.36446165]
[1729605662822,3.81868,2618.7,2618.5,0.36446165]
[1729605663029,3.81935,2618.3,2618.0,0.7594]
[1729605663200,3.8191,2618.5,2618.0,0.7594]
[1729605663384,3.81935,2618.3,2618.0,0.7594]
[1729605663583,3.81914,2618.4,2618.0,0.7594]
[1729605664103,3.81907,2618.5,2618.0,0.7594]
[1729605664784,3.81862,2618.8,2618.0,1.60697516]
[1729605665006,0.7747,2619.5,2618.4,3.81909]
[1729605665222,0.7747,2619.5,2618.6,7.63755]
[1729605665395,3.81798,2619.2,2618.7,0.88377813]
[1729605665596,3.81798,2619.2,2618.6,3.89510767]
[1729605665802,3.81791,2619.3,2618.6,3.89510767]
[1729605666000,7.63583,2619.3,2618.6,3.89510767]
[1729605666325,3.81797,2619.2,2618.7,3.81868]
[1729605666687,3.81797,2619.2,2618.6,3.89518767]
[1729605667025,3.81811,2619.1,2618.6,4.3970926]
[1729605667320,3.81825,2619.0,2618.5,1.12386165]
[1729605667541,3.81825,2619.0,2618.5,4.94281165]
[1729605667687,3.81797,2619.2,2618.6,3.89512289]
[1729605667898,3.81797,2619.2,2618.7,3.81862]
[1729605669299,3.81791,2619.3,2618.7,3.81862]
[1729605669501,3.8179,2619.3,2618.7,3.81862]
[1729605669697,3.81812,2619.1,2618.6,3.81883]
[1729605669936,3.81797,2619.2,2618.6,3.89519806]
[1729605670140,3.8179,2619.3,2618.7,3.81865]
[1729605670648,0.7747,2619.5,2618.7,3.81865]
[1729605670851,3.81708,2619.8,2618.8,4.45402073]
[1729605671154,0.01,2620.7,2618.8,4.45402073]
[1729605671155,3.81662,2620.2,2619.5,3.8175]
[1729605671312,3.81662,2620.2,2619.6,3.81729]
[1729605671514,3.81685,2620.0,2619.4,4.59199]
[1729605671719,3.81685,2620.0,2619.4,4.59198]
[1729605672046,3.81644,2620.3,2619.6,3.81723]
[1729605672227,3.81644,2620.3,2619.7,0.7744]
[1729605672408,3.81701,2619.9,2619.7,0.7744]
[1729605672610,3.81737,2619.7,2619.4,0.7824]
[1729605673113,3.81704,2619.9,2619.4,0.7824]
[1729605673316,3.81735,2619.7,2619.4,0.7824]
[1729605673509,3.81752,2619.5,2619.4,0.7824]
[1729605673709,3.81752,2619.5,2619.3,0.36446165]
[1729605673927,3.81766,2619.4,2619.3,0.36446165]
[1729605674137,4.64046,2619.4,2618.8,0.7871]
[1729605674342,4.64046,2619.4,2618.4,0.7871]
[1729605674343,3.81857,2618.8,2618.4,0.7871]
[1729605674509,0.8228,2619.4,2618.4,0.7871]
[1729605674510,3.8188,2618.7,2618.4,0.7871]
[1729605674714,4.37765316,2619.2,2618.3,0.36446165]
[1729605674715,3.81898,2618.5,2618.3,0.36446165]
[1729605674914,3.81912,2618.4,2618.3,0.36446165]
[1729605676302,3.81974,2618.0,2617.6,0.7632]
[1729605676503,3.8195,2618.2,2617.6,4.58347]
[1729605676925,3.81927,2618.3,2617.6,8.40362]
[1729605677137,3.81922,2618.4,2617.6,1.37843559]
[1729605677428,3.81927,2618.3,2617.7,3.82014]
[1729605677630,3.8192,2618.4,2617.7,7.64019]
[1729605678243,3.81936,2618.3,2617.6,0.7632]
[1729605678415,0.758,2618.7,2617.6,0.7632]
[1729605678416,3.81995,2617.9,2617.6,0.7632]
[1729605678616,3.8196,2618.1,2617.6,0.7632]
[1729605679015,3.81973,2618.0,2617.6,0.7632]
[1729605679407,3.0,2618.4,2617.6,0.7632]
[1729605679408,3.81943,2618.2,2617.6,0.7632]
[1729605679827,3.0,2618.4,2617.6,0.7632]
[1729605680141,7.63964,2618.0,2617.6,0.7632]
[1729605680440,3.8198,2618.0,2617.6,0.7632]
[1729605680806,0.758,2618.7,2617.8,3.8199]
[1729605681006,4.1741343,2618.6,2618.0,4.63913]
[1729605681207,3.81894,2618.6,2618.0,4.63919]
[1729605681405,3.81868,2618.7,2618.1,3.81947]
[1729605682027,3.81929,2618.3,2618.0,0.8195]
[1729605682611,3.81906,2618.5,2618.0,0.8195]
[1729605682844,7.63818,2618.5,2618.0,0.8195]
[1729605683153,3.81892,2618.6,2618.0,0.8195]
[1729605683446,3.81909,2618.5,2618.0,0.8195]
[1729605683636,3.81892,2618.6,2618.0,0.8195]
[1729605684150,3.81892,2618.6,2618.0,1.6654]
[1729605684349,3.81892,2618.6,2618.0,5.48509]
[1729605684852,3.81901,2618.5,2618.0,0.8195]
[1729605685008,3.81868,2618.7,2618.1,3.81956]
[1729605685414,11.19569316,2619.2,2618.5,3.81894]
[1729605685415,3.81817,2619.1,2618.5,3.81894]
[1729605685837,3.81817,2619.1,2618.4,4.57068]
[1729605685838,3.81806,2619.2,2618.6,3.81881]
[1729605686141,3.81861,2618.8,2618.4,0.7517]
[1729605686627,3.81876,2618.7,2618.4,0.7517]
[1729605687471,3.81837,2619.0,2618.4,0.7517]
[1729605687472,3.81827,2619.0,2618.4,0.7517]
[1729605687773,3.81846,2618.9,2618.4,0.7517]
[1729605687975,3.81861,2618.8,2618.4,0.7517]
[1729605688670,6.81754,2619.5,2618.4,0.7517]
[1729605688671,3.81878,2618.7,2618.4,0.7517]
[1729605688876,3.81898,2618.5,2618.3,0.36446165]
[1729605689080,3.81912,2618.4,2618.3,0.36446165]
[1729605689773,4.64512,2618.4,2618.3,0.36446165]
[1729605689980,5.00050908,2618.4,2618.3,0.36446165]
[1729605690493,4.64512,2618.4,2618.3,0.36446165]
[1729605690955,3.81912,2618.4,2618.3,0.36446165]
[1729605691397,4.62699,2618.7,2618.3,0.36446165]
[1729605691398,3.8189,2618.6,2618.3,0.36446165]
[1729605691640,3.81879,2618.7,2618.3,0.36446165]
[1729605691756,7.63699,2618.9,2618.4,0.8128]
[1729605691957,3.81881,2618.7,2618.4,0.8128]
[1729605692465,3.81854,2618.8,2618.4,0.8128]
[1729605692682,3.81876,2618.7,2618.4,0.8128]
[1729605692851,3.81854,2618.8,2618.4,0.8128]
[1729605693257,7.63718,2618.8,2618.4,0.8128]
[1729605693495,3.81854,2618.8,2618.4,0.8128]
[1729605693706,3.81841,2618.9,2618.4,1.31245516]
[1729605694007,3.81792,2619.3,2618.5,3.81892]
[1729605694213,3.81762,2619.5,2618.9,3.81832]
[1729605694507,3.81693,2619.9,2619.1,0.36446165]
[1729605694657,3.8173,2619.7,2619.1,4.18255165]
[1729605695101,3.81693,2619.9,2619.3,3.81781]
[1729605695393,7.63353,2620.1,2619.5,3.81744]
[1729605695691,3.81675,2620.1,2619.5,3.81744]
[1729605695893,3.81675,2620.1,2619.6,3.81737]
[1729605696197,3.81646,2620.3,2619.7,4.63703]
[1729605696198,7.63293,2620.3,2619.7,4.63703]
[1729605696403,3.81646,2620.3,2619.7,5.482459]
[1729605696574,7.63294,2620.3,2619.7,5.482459]
[1729605696781,3.81621,2620.4,2619.9,4.18139165]
[1729605696959,3.81615,2620.5,2619.9,4.18139165]
[1729605697163,3.81615,2620.5,2619.9,0.36446165]
[1729605697359,3.81639,2620.3,2619.9,0.36446165]
[1729605698495,3.8161,2620.5,2619.9,4.18137165]
[1729605698675,3.81634,2620.4,2619.9,0.36446165]
[1729605699200,3.81653,2620.2,2619.9,0.36446165]
[1729605699360,3.81643,2620.3,2619.9,0.36446165]
[1729605699563,3.8165,2620.2,2619.9,0.36446165]
[1729605700108,3.81635,2620.3,2619.9,0.36446165]
[1729605700910,3.81679,2620.0,2619.9,0.36446165]
[1729605701820,3.81666,2620.1,2619.9,0.36446165]
[1729605702034,3.81645,2620.3,2619.9,0.36446165]
[1729605702403,7.63233,2620.5,2619.9,0.36446165]
[1729605702605,7.63232,2620.5,2619.9,0.36446165]
[1729605703031,3.81637,2620.3,2619.9,0.36446165]
[1729605703343,3.81586,2620.7,2620.0,4.63559]
[1729605703650,0.8177,2620.9,2620.0,0.8189]
[1729605703651,3.81642,2620.3,2620.0,0.8189]
[1729605703806,3.81654,2620.2,2620.0,0.8189]